Cogmind - Beta 16.1 @@@ ROGUE MODE // 2026.02.11 @ 22:49:28 Player: Rudrot Result: Destroyed by G-47 Trooper with Particle Gun Performance ------------- Evolutions (0) 0 Regions Visited (1) 200 Robots Destroyed (4) 20 Value Destroyed (94) 94 Prototype IDs (0) 0 Alien Tech Used (0) 0 Bonus (0) 0 TOTAL SCORE: 314 Bonus ------- None Cogmind --------- Core Integrity 0/250 Matter 190/300 Energy 19/100 System Corruption 0% Temperature Cool (9) Movement Core (50) Location -10/Materials Parts ------- > --- POWER (1) -------- (None) > --- PROPULSION (2) --- (None) > --- UTILITY (2) ------ Improved Terrain Scanner > --- WEAPON (2) ------- Small Laser > --- INVENTORY (5) ---- Ion Engine Ion Engine Small Storage Unit Welding Torch Peak State ------------ > --- POWER ------------ Ion Engine > --- PROPULSION ------- Wheel Compact Wheel > --- UTILITY ---------- Improved Terrain Scanner Seismic Detector > --- WEAPON ----------- Assault Rifle Assault Rifle > --- INVENTORY -------- Ion Engine Small Storage Unit [Rating: 9] Favorites ----------- Power Ion Engine Engine Ion Engine Propulsion Wheel Wheel Wheel Utility Improved Terrain Scanner Device Improved Terrain Scanner Storage Small Storage Unit Weapon Assault Rifle Energy Gun Small Laser Ballistic Gun Assault Rifle Special Weapon Welding Torch Build | -11 -10 ------- Run | Yrd Mat Slots Evolved . | . . Power . | . . Propulsion . | . . Utility . | . . Weapon . | . . Parts Attached 13 | 8 5 Power 2 | 1 1 Engine 2 | 1 1 Core . | . . Reactor . | . . Propulsion 3 | 2 1 Treads . | . . Leg . | . . Wheel 3 | 2 1 Hover . | . . Flight . | . . Utility 3 | 3 . Device 2 | 2 . Storage 1 | 1 . Processor . | . . Hackware . | . . Protection . | . . Artifact . | . . Weapon 5 | 2 3 Energy Gun 1 | . 1 Energy Cannon . | . . Ballistic Gun 2 | 2 . Ballistic Cannon . | . . Launcher . | . . Special Weapon 2 | . 2 Impact Weapon . | . . Slashing Weapon . | . . Piercing Weapon . | . . Special Melee Weapon . | . . Unidentified Prototypes . | . . Parts Lost 7 | . 7 Power 1 | . 1 Propulsion 2 | . 2 Utility 1 | . 1 Weapon 3 | . 3 Highest Loss Streak 6 | . 6 To Critical Strikes . | . . Average Backups 1 | . 2 Power 1 | . 1 Propulsion . | . . Utility . | . 1 Weapon . | . . Tool/Special . | . . Unused Backups 1 | . 1 Power 1 | . 1 Propulsion . | . . Utility . | . . Weapon . | . . Tool/Special . | . . Average Slot Usage (%) 79 | . 79 Engine 10 | . 10 Wheel 20 | . 20 Device 23 | . 23 Energy Gun 1 | . 1 Ballistic Gun 20 | . 20 Special Weapon 1 | . 1 Peak Build Rating 9 | 9 9 Average Rating 6 | 5 7 On Entrance 4 | . 9 Avg Prop Armor Cover (%) . | . . Naked Turns . | . . Heaviest Build 15 | 15 11 Greatest Support 26 | 26 26 Greatest Overweight (x) 2 | . 2 Average Overweight (x) . | . . Largest Inventory Capacity 8 | 8 5 Average Capacity 5 | 6 5 Most Carried 5 | 2 5 Average Carried 1 | . 2 Final Capacity 5 | 5 5 Final Carried 4 | 2 4 Class Distribution -------------------- 100% | Mutant Dominant Class ---------------- Mutant | -10/Materials Resources | -11 -10 ----------- Run | Yrd Mat Matter Collected 328 | 328 . Remotely . | . . Salvage Created 191 | 108 83 Parts 7 | 5 2 Haulers Intercepted . | . . Recyclers Shooed . | . . Parts Field Recycled . | . . Retrieved Matter . | . . Parts Self-Destructed . | . . Prevented . | . . Parts Restored . | . . Kills | -11 -10 ------- Run | Yrd Mat Combat Hostiles Destroyed 2 | . 2 Guns 2 | . 2 Classes Destroyed 3 | 2 1 Tunneler 1 | 1 . Recycler 1 | 1 . Grunt 2 | . 2 Best Kill Streak 2 | 1 2 Combat Bots Only 2 | . 2 Max Kills in Single Turn 1 | 1 1 Gunslinging . | . . Exploded . | . . Melee . | . . Uniques/NPCs Destroyed . | . . Combat | -11 -10 -------- Run | Yrd Mat Hostile Shots Fired 70 | . 70 Missed 18 | . 18 Hits 52 | . 52 Projectile 52 | . 52 Critical Strikes 2 | . 2 Damage Taken 734 | . 734 Core 251 | . 251 Absorbed by Shields . | . . Core Remaining (%) 100 | 100 . Volleys Fired 34 | 8 26 Largest 2 | 2 2 Hottest 40 | 40 40 Shots Fired 55 | 16 39 Gun 53 | 16 37 Cannon . | . . Launcher . | . . Special 2 | . 2 Kinetic 45 | 16 29 Thermal 10 | . 10 Explosive . | . . Electromagnetic . | . . Robot Hit Streak 7 | 3 7 Robot Miss Streak 3 | 3 2 Penetration Max . | . . Secondary Targets 1 | . 1 Max Gunslinging Chain 1 | . 1 Shots Hit Robots 36 | 9 27 Core Hits 13 | 3 10 Critical Kills . | . . Critical Parts Destroyed . | . . Critical Strikes . | . . Melee Attacks . | . . Impact . | . . Slashing . | . . Piercing . | . . Sneak Attacks . | . . Combat Hostiles . | . . Follow-up Attacks . | . . Damage Inflicted 461 | 107 354 Guns 453 | 107 346 Cannons . | . . Explosions . | . . Melee . | . . Ramming 4 | . 4 Kinetic 376 | 107 269 Thermal 81 | . 81 Explosive . | . . Electromagnetic . | . . Impact . | . . Slashing . | . . Piercing . | . . Highest Corruption . | . . Average Corruption . | . . Corruption Purged . | . . Corruption Blocked . | . . Overload Shots . | . . Overflow Damage . | . . Projectiles . | . . Explosions . | . . Melee . | . . Knockbacks . | . . Impact . | . . Kinetic . | . . Secondary . | . . Self-Inflicted Damage 2 | . 2 Shots . | . . Rammed 1 | . 1 Targets Rammed 1 | . 1 Kicked . | . . Crushed . | . . Highest Temperature 22 | . 22 Average Temperature 8 | . 8 Received Heat Transfer 453 | . 453 Siege Activations . | . . Martial Activations . | . . Shielding Activations . | . . Robots Disrupted . | . . Combat Hostiles . | . . Robots Corrupted . | . . Combat Hostiles . | . . Parts Fried . | . . Impact Corruptions . | . . Robots Melted . | . . Combat Hostiles . | . . Parts Melted . | . . Heat Transferred 200 | . 200 Parts Sabotaged . | . . Parts Stolen . | . . Parts Stripped . | . . Power Chain Reactions . | . . Alert | -11 -10 ------- Run | Yrd Mat Maximum Alert Level . | . . Low Security (%) 100 | 100 100 Level 1 . | . . Level 2 . | . . Level 3 . | . . Level 4 . | . . Level 5 . | . . High Security . | . . Max Security . | . . Peak Influence 40 | 5 40 Initial . | . . Average 3 | 1 5 Influence Increases 90 | 10 80 Destroy 0b10 Robot/C 40 | . 40 Destroy 0b10 Robot/NC 10 | 10 . Destroy Leader 10 | . 10 Lose Combat Pursuer 30 | . 30 Influence Decreases 90 | 10 80 Time Decay 50 | 10 40 Lost Part 40 | . 40 Squads Dispatched . | . . Investigation . | . . Extermination . | . . Reinforcement . | . . Assault . | . . Garrison . | . . Intercept . | . . Searches Triggered . | . . Construction Impeded . | . . Haulers Reinforced . | . . Active Scanning Responses . | . . Cargo Convoy Interrupts . | . . Stealth | -11 -10 --------- Run | Yrd Mat Distress Signals 1 | . 1 Communications Jammed . | . . Distress Signals . | . . Times Spotted 9 | . 9 Peak Tracking Total 5 | . 5 Tactical Retreats 1 | . 1 Traps | -11 -10 ------- Run | Yrd Mat Traps Triggered . | . . Indirectly . | . . Trap Hack Attempts . | . . Triggered . | . . Disarmed . | . . Reprogrammed . | . . Reused . | . . Traps Extracted . | . . Installed . | . . Triggered . | . . Machines | -11 -10 ---------- Run | Yrd Mat Machines Disabled . | . . Max in Single Turn . | . . Machines Repaired . | . . Machines Dismantled . | . . Machines Sabotaged . | . . Overloaded Fab Kills . | . . Hacking | -11 -10 --------- Run | Yrd Mat Machines Accessed . | . . Terminals . | . . Fabricators . | . . Repair Stations . | . . Recycling Units . | . . Scanalyzers . | . . Garrison Access . | . . Total Hacks . | . . Successful . | . . Failed . | . . Catastrophic . | . . Database Lockouts . | . . Manual . | . . Terminals . | . . Fabricators . | . . Repair Stations . | . . Recycling Units . | . . Scanalyzers . | . . Garrison Access . | . . Terminal Hacks . | . . Fabricator Hacks . | . . Repair Station Hacks . | . . Recycling Unit Hacks . | . . Scanalyzer . | . . Garrison Access Hacks . | . . Unauthorized Hacks . | . . Terminals . | . . Fabricators . | . . Repair Stations . | . . Recycling Units . | . . Scanalyzers . | . . Garrison Access . | . . Data Cores Recovered . | . . Used . | . . Hacking Detections . | . . Full Trace Events . | . . Feedback Events . | . . Feedback Blocked . | . . Robot Schematics Acquired . | . . Robots Built . | . . Authchips . | . . Time . | . . Total Robot Build Rating . | . . Part Schematics Acquired . | . . Parts Built . | . . Authchips . | . . Time . | . . Total Part Build Rating . | . . Part Studies Acquired . | . . Parts Repaired . | . . Time . | . . Parts Recycled . | . . Recycled Matter . | . . Retrieved Matter . | . . Retrieved Components . | . . Parts Scanalyzed . | . . Part Schematics Acquired . | . . Parts Damaged . | . . Bothacking | -11 -10 ------------ Run | Yrd Mat Used RIF Installer . | . . Robots Hacked . | . . Non-combat . | . . Combat . | . . Robot Hacks Applied . | . . Relay Couplers Released . | . . Fabnet Peak Effective % . | . . Robots Rewired . | . . Allies Hacked . | . . Hacks Repelled . | . . Allies | -11 -10 -------- Run | Yrd Mat Total Allies . | . . Largest Group . | . . Highest-Rated Group . | . . Highest-Rated Ally . | . . Total Orders . | . . Ally Attacks . | . . Total Damage . | . . Kills . | . . Allies Corrupted . | . . Allies Melted . | . . Intel | -11 -10 ------- Run | Yrd Mat Active Infowar (turns) 301 | 55 246 Terrain 256 | 10 246 Seismic 222 | 55 167 Robot Analysis Total . | . . Derelict Logs Recovered . | . . Drone Launches . | . . Drone Recoveries . | . . Exploration | -11 -10 ------------- Run | Yrd Mat Turns Passed 374 | 128 246 Spaces Moved 234 | 102 132 Core 42 | 1 41 Treads . | . . Legs . | . . Wheels 192 | 101 91 Hover . | . . Flight . | . . Fastest Speed 50 | 50 50 Average Speed 80 | 89 73 Slowest Speed 150 | 90 150 Overloaded Moves . | . . Propulsion Burnouts . | . . Robots Hopped . | . . Potential Cave-ins . | . . Cave-ins Triggered . | . . Exploration Rate (%) 14 | 4 24 Regions Visited 1 Branch Regions . Pre-discovered Areas . | . . Known Exits Taken . | . . Unknown Exits Taken 1 | 1 . Scrap Searched . | . . Spaces Dug . | . . Terrain Destroyed . | . . Melee . | . . Projectile . | . . AOE . | . . Terrain Rammed . | . . Walls Destroyed . | . . Machines Disabled . | . . Actions | -11 -10 --------- Run | Yrd Mat Total 361 | 119 242 Wait 73 | . 73 Move 233 | 101 132 Hop . | . . Pick Up 1 | 1 . Fast Attach 12 | 8 4 Attach 1 | . 1 Detach 4 | 1 3 Swap 1 | . 1 Drop 1 | . 1 Fire 34 | 8 26 Melee . | . . Ram 1 | . 1 Kick . | . . Crush . | . . Escape Stasis . | . . Rewire . | . . Trap . | . . Miscellaneous . | . . Route ------- -11/Scrapyard -10/Materials (discovered 1 exit: [*Min]) History --------- Turn | Location | Event 29 | -11/Scrapyard | Discovered new exit (range 15) 129 | -11/Scrapyard | Entered Materials 160 | -10/Materials | Discovered new exit (range 10) 310 | -10/Materials | Core integrity fell below 50% 312 | -10/Materials | Build established: Mutant 346 | -10/Materials | Lost 6 parts (1p2n1u2w) 359 | -10/Materials | Core integrity fell below 20% 375 | -10/Materials | Destroyed by G-47 Trooper with Particle Gun Last Messages --------------- 00311_ R-06 Scavenger collects Aluminum Leg. 00313_ Wheel destroyed. 00314_ K-01 Serf collects debris. 00315_ Critical hit (Burn: +37). 00315_ Assault Rifle destroyed. 00317_ G-34 Mercenary destroyed. 00317_ R-06 Scavenger collects Sml. Laser. 00317_ K-01 Serf collects debris. 00319_ Slammed into R-06 Scavenger. 00320_ K-01 Serf collects debris. 00323_ K-01 Serf destroyed. 00323_ K-01 Serf cleans the Matter Pump. 00328_ Acquired Welding Torch. 00331_ R-06 Scavenger collects Wheel. 00334_ K-01 Serf cleans the Matter Pump. 00339_ U-05 Engineer builds a Door. 00341_ Acquired Sml. Laser. 00343_ K-01 Serf cleans the Matter Pump. 00344_ Acquired Ion Engine. 00367_ Welding Torch destroyed. Map ----- +----------------------------------------------------+ | ?????????????????????????????????????? | | ?????????????????????????????????????? | | ?????????????????????????????????????? | | ?????????????????????????????????????? | | ?????????????????????????????????????? | | ?????????????????????????????????????? | | ?????????????????????????????????????? | | ?????????????????????????????????????? | | ?????????????????????????????????????? | | ?????????????????????????????????????? | | ????????? ???????????????????????????? | | ??????????????????? ?????????????????? | | ?????????????????" "????????????????? | | ????????? ??????"" ??"??????????????? | | ?? ????????????? ??????????????????? | | ???????????? ??? ??????????????????? | | ???????????????? ??????????????????? | | ???????????#####+#####???????????????? | | ? ?????????# #? ?????????????? | | ?? ????????# """ #??? ???????????? | | ???????????# """ #???????????????? | | ????? ?????# """ #?? ? ?????????? | | ????#??????#!* #???? #????????? | | ???????????#! #??? #????????? | | ???????????# m #?? #????????? | | ?????#?????# @g # #????????? | | ?????????#+####+###### #????????? | | ???? ?? ????# #????????? | | ??????????? # #????????? | | ??? ?? ??? ?+ || || #????????? | | ????? ? ??? # | |! #????????? | | ??? ????????# |^ #????????? | | ?????????? ?# ?????? | | #?# ?"??? ??# ^ ?????? | | ?#????"??? ?# ??????? | | #?#?????????# """ #??????? | | #######?????# """ #??????? | | # #?????# "T" """ +??????? | | # = ""####### #??????? | | # Y"# #??????? | | # ! ""# = ########## #??????? | | # # =%= #?##?#???# #??????? | | # " %%#####+####?#???## #??????? | | # """ # !=# ##?????# #??????? | | # """ # # """#????### ######## | | # """ # # """#??#?## | | # ##### """####### ^ | | # #?#?# + < | | # #???# """####### #####?? | | ########??# """#?????# #?????? | +----------------------------------------------------+ Best States ------------- Heat Dissipation 25 Energy Generation 10 Energy Capacity 250 Matter Stores 300 Matter Capacity 300 Sight Range 16 Terrain Scan Range 16 Terrain Scan Density 10 Evasion (%) 50 Item Schematics ----------------- None Robot Schematics ------------------ None Fabricated ------------ Nothing Repaired ---------- Nothing Studied --------- None Alien Tech Used ----------------- None Achievements -------------- None Challenges ------------ None Game ------ Seed ShockboltActiveCarapace Manual? 0 Play Time 00:07:30 Cumulative 31.6 hours Start 2026.02.11 @ 22:45:05 End 2026.02.11 @ 22:49:28 Sessions 1 Manual Loads 0 Difficulty Rogue Special Mode None Game No. 34 Rogue 34 Adventurer 0 Explorer 0 Win Type - Total 0 Types 0/0/0/0/0/0/0/0/0/0 Lore% 16 Gallery% 15 Achievement% 14 Wizard Run 0 Options --------- Layout 1 ASCII 0 Keyboard 1 Movement Numpad Keybinds 0 Fullscreen 2 Font 24/Cog Map View 50x35 Zoom Use 0% Tactical HUD 1 Map Filters NONE Filters NONE Steam 1 RUN: e212cb55-c02a-4dcf-8d5f-d5c4efaa9fd7